bitfinex/quotes_ETHUSD_20241108
["timestamp","ask_amount","ask_price","bid_price","bid_amount"]
[1731077064564,3.81995932,2924.6,2924.1,0.3515625]
[1731077064763,0.55,2924.2,2924.1,0.02197265]
[1731077065179,0.55,2924.5,2924.1,0.02197265]
[1731077065382,0.55,2924.2,2924.1,0.02197265]
[1731077065604,0.93199593,2924.2,2924.1,0.02197265]
[1731077066076,0.93199593,2924.2,2922.7,0.1385877]
[1731077066286,0.55,2923.6,2922.7,0.1385877]
[1731077066464,4.0426201,2923.3,2922.7,0.1385877]
[1731077066668,4.0426201,2923.7,2922.7,0.1385877]
[1731077067009,0.40426201,2923.6,2922.7,0.1385877]
[1731077067366,0.55,2923.5,2922.7,0.1385877]
[1731077068287,4.0426201,2922.9,2922.7,0.1385877]
[1731077068609,0.55,2922.8,2922.7,0.1385877]
[1731077069214,0.55,2922.8,2921.3,0.25]
[1731077069377,0.45926201,2922.7,2921.3,0.25]
[1731077069575,4.0426201,2922.5,2921.3,0.25]
[1731077069873,0.55,2922.4,2921.3,0.25]
[1731077070091,0.05135596,2922.6,2921.3,0.25]
[1731077070617,0.55,2922.5,2921.3,0.25]
[1731077070907,4.5926201,2922.5,2921.3,0.25]
[1731077071121,0.55,2922.3,2921.3,0.25]
[1731077072011,4.0426201,2922.1,2921.3,0.25]
[1731077072183,0.55,2922.0,2921.3,0.25]
[1731077072384,0.55,2922.0,2920.2,0.06847145]
[1731077072385,4.0426201,2921.7,2920.2,0.06847145]
[1731077072595,4.0426201,2921.3,2920.0,0.00513869]
[1731077072808,0.55,2921.6,2920.0,0.00513869]
[1731077072809,0.40426201,2921.2,2920.0,0.00513869]
[1731077073027,4.23596763,2921.6,2920.0,0.07362399]
[1731077073239,4.0426201,2921.3,2920.0,0.00513869]
[1731077073379,0.4063,2920.7,2919.0,0.75705879]
[1731077073716,0.4063,2920.7,2919.0,4.11111135]
[1731077073926,0.4063,2920.7,2919.1,0.41111113]
[1731077074276,0.55,2920.8,2919.1,0.41111113]
[1731077074472,0.4063,2920.5,2918.6,5.14574553]
[1731077074688,0.55,2920.2,2918.7,0.06850506]
[1731077074912,0.4063,2921.2,2919.3,4.0426201]
[1731077075126,0.4063,2921.1,2919.3,4.0426201]
[1731077075689,0.4063,2921.1,2919.4,35.0]
[1731077075904,0.4063,2921.1,2919.5,3.0]
[1731077076201,0.4063,2921.1,2919.4,3.0]
[1731077076401,0.4063,2921.1,2919.5,0.7993]
[1731077076588,0.4063,2921.1,2919.6,35.0]
[1731077076790,0.55,2920.8,2919.0,3.0]
[1731077076990,0.4063,2920.9,2919.1,0.85459788]
[1731077077221,0.4063,2920.9,2919.4,3.0]
[1731077077392,0.15030681,2920.9,2919.7,4.0426201]
[1731077077589,0.15030681,2920.9,2919.8,3.0]
[1731077077821,0.15030681,2920.9,2919.4,3.0]
[1731077078005,0.15030681,2920.9,2919.5,0.63555792]
[1731077078330,0.15030681,2920.9,2919.2,0.7735]
[1731077078634,0.15030681,2920.9,2919.3,35.0]
[1731077078816,0.15030681,2920.9,2919.4,3.0]
[1731077078989,0.15030681,2920.9,2919.5,0.06848949]
[1731077079740,0.15030681,2920.9,2919.6,35.0]
[1731077079891,0.15030681,2920.9,2919.7,0.0684888]
[1731077080639,0.15030681,2920.9,2919.8,35.0]
[1731077080847,0.15030681,2920.9,2919.9,0.06848527]
[1731077081125,0.15030681,2920.9,2919.6,3.0]
[1731077081293,0.15030681,2920.9,2920.0,0.825]
[1731077081492,0.15030681,2920.9,2919.6,35.0]
[1731077082029,0.15030681,2920.9,2919.2,1.32178929]
[1731077082195,0.15030681,2920.9,2919.6,4.0426201]
[1731077082391,0.15030681,2920.9,2920.0,4.8666201]
[1731077082612,0.1503,2922.1,2920.5,3.0]
[1731077082843,0.1503,2922.1,2920.2,3.6724967]
[1731077083054,0.1503,2922.1,2920.4,3.0]
[1731077083239,0.1503,2922.1,2920.6,4.0426201]
[1731077083567,0.1503,2922.1,2920.7,38.88715357]
[1731077083871,0.1503,2922.1,2921.0,4.0426201]
[1731077084011,0.1503,2922.1,2920.8,0.93499792]
[1731077084214,0.1503,2922.1,2920.9,4.0426201]
[1731077084458,0.1503,2922.1,2920.8,3.93499792]
[1731077084754,0.1503,2922.1,2920.9,0.55511087]
[1731077084909,0.1503,2922.1,2920.9,0.14576201]
[1731077085110,0.1503,2922.1,2921.2,3.0]
[1731077085624,0.1503,2922.1,2921.0,3.0]
[1731077085823,0.1503,2922.1,2920.9,0.14576201]
[1731077086265,0.1503,2922.1,2920.8,7.0426201]
[1731077086266,0.1503,2922.1,2921.0,0.06845451]
[1731077086556,0.1503,2922.1,2920.7,0.8187]
[1731077086736,0.1503,2922.1,2920.6,4.0426201]
[1731077087561,0.1503,2921.9,2920.1,4.0426201]
[1731077088015,0.55,2922.0,2920.1,4.0426201]
[1731077088016,0.1503,2921.7,2920.1,4.0426201]
[1731077088217,0.1503,2921.7,2920.2,0.47273423]
[1731077088570,0.1503,2921.7,2920.8,4.0426201]
[1731077088732,0.1503,2921.7,2920.2,3.0]
[1731077088918,0.1503,2921.7,2920.1,3.0]
[1731077089123,0.1503,2921.7,2920.0,4.0426201]
[1731077089553,0.68995259,2922.0,2920.0,4.0426201]
[1731077089554,0.7003,2921.6,2920.0,4.0426201]
[1731077089855,0.1503,2921.4,2920.1,0.47346263]
[1731077090058,0.1503,2921.4,2919.8,0.7508]
[1731077090059,0.1503,2921.4,2919.8,4.7934201]
[1731077090471,0.1503,2921.4,2920.0,4.0426201]
[1731077090756,0.1503,2921.4,2919.8,0.7508]
[1731077090966,0.1503,2921.4,2919.9,4.0426201]
[1731077091275,0.1503,2921.4,2919.8,0.7508]
[1731077091276,0.1503,2921.4,2920.3,4.0426201]
[1731077091552,0.1503,2921.4,2919.3,0.005]
[1731077091722,0.1503,2921.4,2919.7,4.0426201]
[1731077092320,0.1503,2921.4,2919.6,0.69447532]
[1731077092520,3.5935,2921.3,2919.3,0.005]
[1731077092835,0.1503,2920.8,2919.3,0.07349874]
[1731077093040,0.1503,2920.8,2919.3,0.47070936]
[1731077093661,0.1503,2920.8,2919.3,0.005]
[1731077093965,0.55,2920.5,2919.3,0.005]
[1731077094466,0.69269637,2920.9,2919.3,4.0476201]
[1731077094467,0.1503,2920.2,2919.3,4.0476201]
[1731077094763,0.1503,2920.2,2919.4,0.06849586]
[1731077095129,0.14894658,2920.2,2919.7,4.0426201]
[1731077095568,0.01,2921.8,2919.8,0.06848664]
[1731077095774,0.68378934,2921.6,2919.8,0.06848664]
[1731077096079,0.68378934,2921.6,2919.7,4.0426201]
[1731077096080,0.68378934,2921.6,2919.4,3.0]
[1731077096235,0.68378934,2921.6,2919.5,4.78710732]
[1731077096741,4.0426201,2921.4,2919.3,0.811]
[1731077096950,0.55,2921.2,2919.3,0.811]
[1731077097476,0.68378934,2921.6,2919.5,4.0426201]
[1731077098053,0.1489,2921.5,2919.5,4.0426201]
[1731077098584,0.6989,2921.5,2919.5,4.0426201]
[1731077098786,0.6989,2921.5,2919.3,0.811]
[1731077098787,0.1489,2921.2,2919.3,0.005]
[1731077098947,0.1489,2921.0,2919.3,0.005]
[1731077099464,0.1489,2920.8,2919.3,0.0734931]
[1731077099877,0.1489,2920.8,2919.8,4.0426201]
[1731077100082,0.1489,2920.8,2919.9,0.40426201]
[1731077101283,0.1489,2920.8,2920.0,0.06847307]
[1731077101830,0.1489,2921.9,2920.2,4.8716201]
[1731077101996,0.1489,2921.9,2920.7,4.0426201]
[1731077102190,0.1489,2921.9,2920.8,0.06846013]
[1731077102422,0.1489,2921.9,2920.8,0.41110802]
[1731077102593,0.1489,2921.9,2920.4,3.0]
[1731077103690,0.1489,2921.9,2920.4,3.66249614]
[1731077103885,0.1489,2921.9,2920.5,0.7531]
[1731077104091,4.09397606,2922.6,2921.5,4.0426201]
[1731077104092,0.1489,2922.5,2921.5,4.0426201]
[1731077104292,0.1489,2922.5,2921.6,0.40426201]
[1731077104522,0.1489,2922.5,2920.7,4.7957201]
[1731077104720,0.1489,2922.5,2920.8,3.0]
[1731077105321,0.1489,2922.5,2920.9,0.06845526]
[1731077105719,0.1489,2922.5,2921.1,4.0426201]
[1731077106148,0.1489,2922.5,2921.2,0.06844564]
[1731077106449,0.1489,2922.5,2921.3,0.41110657]
[1731077106959,0.1489,2922.5,2921.4,0.06844695]
[1731077107448,0.1489,2922.5,2921.4,0.8032]
[1731077107632,0.1489,2922.5,2921.5,4.0426201]
[1731077107834,0.1489,2922.5,2921.4,0.8032]
[1731077108042,0.1489,2922.5,2921.3,0.41110657]
[1731077108239,0.1489,2922.5,2921.2,3.0]
[1731077108240,0.1489,2922.5,2921.4,0.34111066]
[1731077108742,0.1489,2922.5,2921.5,4.0426201]
[1731077109253,0.1489,2922.5,2921.9,4.0426201]
[1731077109452,0.05135596,2922.6,2921.9,4.0426201]
[1731077109616,0.05135596,2922.6,2922.0,3.0]
[1731077109961,0.05135596,2922.6,2922.0,3.70426201]
[1731077110613,0.05135596,2922.6,2922.0,3.0]
[1731077110815,0.05135596,2922.6,2921.8,0.66705647]
[1731077110816,0.1489,2922.5,2921.8,0.66705647]
[1731077111039,0.1489,2922.5,2921.7,0.8032]
[1731077111360,0.1489,2922.5,2921.8,0.06842864]
[1731077111559,0.1489,2922.5,2921.7,0.8032]
[1731077111714,0.1489,2922.5,2921.5,0.65169901]
[1731077112013,0.1489,2922.5,2921.4,3.0]
[1731077112014,0.1489,2922.5,2921.6,0.3651699]
[1731077112220,0.1489,2922.5,2921.4,3.0]
[1731077112458,0.05135596,2922.6,2921.7,4.0426201]
[1731077112659,0.1489,2922.5,2921.8,0.06842835]
[1731077112963,0.05135596,2922.6,2921.8,3.0]
[1731077113470,0.05135596,2922.6,2921.4,3.0]
[1731077113931,0.1489,2922.5,2921.3,4.0426201]
[1731077114772,0.1489,2922.5,2921.5,0.8088]
[1731077114983,0.1489,2922.5,2921.7,4.0426201]
[1731077115124,0.1489,2922.5,2921.8,3.0]
[1731077116137,0.05996,2922.5,2921.8,3.0]
[1731077116346,0.05135596,2922.6,2922.1,4.0426201]
[1731077117580,0.05135596,2922.6,2921.1,0.8281]
[1731077117783,0.05135596,2922.6,2921.4,4.0426201]
[1731077118071,0.05135596,2922.6,2921.8,4.0426201]
[1731077119326,0.0377,2922.5,2921.5,3.0]
[1731077119628,0.0377,2922.5,2921.6,0.77269967]
[1731077119830,0.0377,2922.5,2921.8,4.8203201]
[1731077120061,0.05135596,2922.6,2922.2,4.0426201]
[1731077120747,0.05135596,2922.6,2922.3,0.06842971]
[1731077120944,0.0377,2922.8,2922.2,4.0426201]
[1731077121258,0.0377,2922.8,2922.3,0.37649792]
[1731077121458,0.0377,2923.1,2922.6,4.0426201]
[1731077121662,4.0426201,2925.1,2922.6,4.0426201]
[1731077121663,0.05132577,2923.8,2923.1,4.0426201]
[1731077121869,0.05132577,2923.8,2923.2,0.06840795]
[1731077122091,0.05132577,2923.8,2923.5,4.0426201]
[1731077122380,0.05132577,2923.8,2923.0,4.0426201]
[1731077122580,0.05132577,2923.8,2923.1,3.0]
[1731077122891,0.0377,2923.7,2923.1,3.0]
[1731077123050,0.0377,2923.7,2923.2,0.06840516]
[1731077123244,0.0377,2923.7,2923.0,4.0426201]
[1731077123861,0.0377,2923.7,2923.1,0.06840858]
[1731077124078,0.0377,2923.7,2923.0,4.0426201]
[1731077124293,0.0377,2923.7,2923.4,4.0426201]
[1731077124647,0.0377,2923.7,2923.1,0.40426201]
[1731077124995,0.0377,2923.7,2923.0,4.0426201]
[1731077125287,0.0377,2923.7,2923.1,0.06840124]
[1731077125496,0.0377,2923.7,2923.0,4.0426201]
[1731077126045,0.0377,2923.7,2922.6,38.0]
[1731077126046,0.05132577,2923.8,2923.4,4.0426201]
[1731077126576,0.05132577,2923.8,2923.5,0.06840065]
[1731077127085,0.0377,2923.9,2923.5,0.41110207]
[1731077127247,0.0377,2925.3,2923.8,4.0426201]
[1731077127580,0.0377,2925.3,2923.3,0.7742]
[1731077127581,0.0377,2925.2,2923.4,4.0426201]
[1731077128344,0.55,2925.1,2923.4,4.0426201]
[1731077128561,0.0377,2925.0,2923.4,4.0426201]
[1731077128959,0.0377,2925.0,2923.4,4.44688211]
[1731077129702,0.0377,2925.0,2924.2,4.0426201]
[1731077130475,0.0377,2925.0,2923.8,4.0426201]
[1731077131595,0.0377,2925.0,2923.9,0.0683916]
[1731077131762,0.0377,2925.0,2923.8,4.0426201]
[1731077131961,0.0377,2925.0,2923.4,0.40426201]
[1731077132185,0.0377,2925.0,2923.3,4.0426201]
[1731077132356,0.0377,2925.0,2923.1,4.0426201]
[1731077133308,0.0377,2925.0,2923.5,4.0426201]
[1731077133517,0.0377,2925.0,2923.6,0.06839333]
[1731077133683,0.0377,2925.0,2923.7,0.06839321]
[1731077134285,0.0377,2925.0,2923.6,0.06839396]
[1731077135016,0.0377,2924.8,2923.6,0.06839396]
[1731077136191,0.0377,2924.8,2923.1,4.0426201]
[1731077136510,0.0377,2924.8,2923.1,4.52481211]
[1731077136723,4.0426201,2924.2,2922.1,0.824]
[1731077136868,0.0377,2924.0,2922.1,0.824]
[1731077137375,0.0377,2924.0,2922.2,0.06841982]
[1731077137712,0.0377,2923.8,2922.1,0.824]
[1731077137900,3.0,2923.7,2921.7,0.824]
[1731077138100,0.0377,2923.6,2921.7,0.824]
[1731077139496,0.0377,2923.6,2922.0,4.0426201]
[1731077139694,0.0377,2923.6,2922.1,0.40426201]
[1731077140483,0.0377,2923.6,2921.6,4.0426201]
[1731077140685,0.0377,2923.6,2921.7,0.06843144]
[1731077140993,0.0377,2923.6,2922.0,4.0426201]
[1731077141391,0.0377,2923.6,2921.6,4.0426201]
[1731077141587,0.0377,2923.5,2921.7,0.40426201]
[1731077142734,0.5877,2923.3,2921.2,4.0426201]
[1731077143049,0.0377,2923.2,2921.2,4.0426201]
[1731077143339,0.0377,2923.2,2921.0,0.8223]
[1731077143340,4.0426201,2923.1,2921.0,0.8223]
[1731077143494,0.0377,2922.9,2921.0,0.8223]
[1731077143693,0.0377,2922.9,2921.1,0.06844592]
[1731077143898,0.0377,2922.7,2921.0,0.8223]
[1731077144094,0.0377,2922.7,2921.2,4.0426201]
[1731077144332,0.0377,2922.7,2921.3,0.06844803]
[1731077144632,0.0377,2922.7,2921.2,4.0426201]
[1731077144797,0.0377,2922.7,2921.3,0.06844592]
[1731077145147,0.0377,2922.7,2922.0,4.0426201]
[1731077145294,0.0377,2924.2,2922.4,4.0426201]
[1731077145502,0.0377,2924.2,2922.8,4.0426201]
[1731077145921,0.0377,2924.2,2922.6,0.7586]
[1731077146395,0.0377,2924.2,2922.6,35.7586]
[1731077146594,0.0377,2924.2,2922.7,0.66965333]
[1731077147704,0.0377,2924.2,2922.6,0.7586]
[1731077147912,0.0377,2924.2,2922.8,4.33062262]
[1731077148100,0.0377,2924.2,2923.2,4.33062262]
[1731077148298,0.0377,2924.2,2923.3,0.06839419]
[1731077148636,0.0377,2924.2,2923.6,4.33062262]
[1731077148820,0.0377,2924.2,2923.7,0.43306226]
[1731077149404,0.05130798,2925.4,2923.8,0.06838666]
[1731077149405,0.0377,2925.3,2923.8,0.06838666]
[1731077149846,0.0377,2925.3,2923.7,0.43306226]
[1731077150002,0.0377,2925.3,2923.8,0.06838363]
[1731077150410,0.0377,2925.3,2924.0,4.33062262]
[1731077150643,0.05130798,2925.4,2924.8,4.33062262]
[1731077151153,0.05130798,2925.4,2924.5,1.3355]
[1731077151154,0.05130798,2925.4,2924.5,0.7855]
[1731077151743,0.05130798,2925.4,2924.6,0.0683633]
[1731077152934,0.05130798,2925.4,2924.7,35.0]
[1731077153104,0.05130798,2925.4,2924.8,0.71605631]
[1731077153321,0.05130798,2925.4,2924.9,4.33062262]
[1731077153708,0.05130798,2925.4,2925.0,0.06835467]
[1731077153911,0.05130798,2925.4,2925.1,0.755]
[1731077154263,0.68941701,2926.8,2925.1,0.755]
[1731077154264,0.0377,2926.8,2925.4,0.55]
[1731077154555,0.0377,2926.8,2925.7,4.33062262]
[1731077154755,0.0377,2927.3,2925.8,0.06833242]
[1731077154952,0.0377,2927.3,2926.2,0.55]
[1731077155454,0.0377,2927.3,2926.3,35.7968]
[1731077155658,0.0377,2927.3,2925.8,3.807]
[1731077155857,0.0377,2927.3,2925.5,0.43306226]
[1731077156010,0.0377,2927.3,2925.6,0.49234305]
[1731077156207,0.0377,2927.3,2925.8,0.55]
[1731077156413,0.0377,2927.3,2926.1,4.33062262]
[1731077156624,0.0377,2927.3,2925.7,35.0]
[1731077156820,0.0377,2927.3,2925.4,0.807]
[1731077157060,0.01,2927.0,2925.0,0.807]
[1731077157275,0.0377,2926.9,2924.4,5.13762262]
[1731077157457,3.46452,2926.7,2924.4,5.13762262]
[1731077157624,3.0477,2926.6,2924.4,5.13762262]
[1731077157825,0.0377,2926.5,2924.4,5.13762262]
[1731077158149,0.0377,2926.5,2924.5,0.0683676]
[1731077158372,0.01,2926.0,2924.0,4.33062262]
[1731077158527,0.0377,2925.9,2923.7,0.38328365]
[1731077158729,0.0377,2925.9,2923.6,5.13592262]
[1731077159072,0.0377,2925.9,2923.7,0.06838023]
[1731077159937,0.0377,2925.9,2924.0,4.33062262]
[1731077160136,0.0377,2925.9,2924.1,0.50143723]
[1731077160352,0.0377,2925.9,2924.5,0.7762]
[1731077160671,0.0377,2925.9,2924.6,0.06835777]
[1731077161025,0.0377,2925.9,2924.8,4.33062262]
[1731077161227,0.0377,2926.8,2925.3,1.3262]
[1731077161460,0.0377,2926.8,2925.7,4.33062262]
[1731077161702,0.0377,2926.8,2925.8,0.06833676]
[1731077162087,0.0377,2926.8,2925.7,4.33062262]
[1731077162616,0.0377,2926.8,2925.8,0.0683356]
[1731077163318,0.05126433,2927.5,2925.8,0.0683356]
[1731077163319,0.0377,2927.4,2926.2,0.55]
[1731077163612,0.0377,2927.4,2926.5,4.33062262]
[1731077163799,0.0377,2927.4,2926.6,0.06831682]
[1731077164719,0.0377,2927.4,2926.5,4.33062262]
[1731077165676,0.0377,2927.4,2926.3,0.51507767]
[1731077165876,0.0377,2927.4,2926.4,0.61831366]
[1731077166086,0.0377,2927.4,2926.4,0.55]
[1731077166721,0.0377,2927.4,2925.6,0.827]
[1731077166942,0.0377,2927.3,2925.1,0.827]
[1731077167137,0.0377,2927.3,2925.3,4.33062262]
[1731077167427,0.0377,2927.3,2925.4,0.06833134]
[1731077167636,0.0377,2927.3,2925.7,4.33062262]
[1731077167985,0.0377,2927.3,2925.8,0.06833134]
[1731077168736,0.0377,2927.3,2925.7,4.33062262]
[1731077169024,0.0377,2927.3,2925.6,0.55]
[1731077169451,0.0377,2927.3,2925.7,0.06833345]
[1731077170011,0.0377,2927.3,2925.6,0.55]
[1731077170205,0.0377,2927.3,2925.7,0.0683331]
[1731077171316,0.0377,2927.3,2925.5,0.4398954]
[1731077171530,0.0377,2927.3,2925.1,0.827]
[1731077172156,0.0477,2926.5,2924.2,0.35259371]
[1731077172455,0.0477,2926.5,2923.8,4.33062262]
[1731077172456,0.0377,2926.4,2924.3,0.06836295]
[1731077172751,0.0377,2926.3,2923.9,0.06836291]
[1731077173141,0.0377,2926.3,2923.8,4.69329975]
[1731077173322,0.0377,2926.3,2923.9,3.0]
[1731077173648,3.0,2926.2,2923.9,3.0]
[1731077173849,0.0377,2926.0,2923.9,3.0]
[1731077174210,0.0377,2926.0,2924.0,0.06836783]
[1731077174409,0.0377,2926.0,2923.9,3.0]
[1731077175223,0.0377,2926.0,2923.6,0.69804022]
[1731077175224,0.0377,2925.9,2923.6,0.67804022]
[1731077175421,0.0377,2925.9,2923.4,4.33062262]
[1731077175658,0.0377,2925.7,2923.5,0.57922993]
[1731077175810,0.0377,2925.7,2923.5,0.51085226]
[1731077176249,0.0377,2925.6,2923.5,0.51085226]
[1731077176458,0.0377,2925.6,2923.3,0.7779]
[1731077176704,0.01,2925.7,2923.0,4.68203176]
[1731077176705,3.0,2925.4,2923.0,4.33062262]
[1731077176903,0.0477,2925.3,2922.6,5.14372262]
[1731077177112,0.0377,2925.0,2922.6,5.14372262]
[1731077177312,0.0377,2924.8,2922.7,0.68280526]
[1731077177970,3.0377,2924.2,2922.0,0.005]
[1731077178171,0.0377,2924.1,2922.0,0.005]
[1731077179130,0.55,2924.0,2922.0,0.005]
[1731077179267,0.0377,2923.7,2922.0,0.005]
[1731077179472,3.0,2923.4,2922.0,0.005]
[1731077179783,0.0377,2923.2,2922.0,0.005]
[1731077179969,0.56,2923.1,2922.0,0.005]
[1731077180167,0.0377,2923.0,2922.0,0.005]
[1731077180828,0.0377,2922.9,2922.0,0.005]
[1731077181472,4.33062262,2922.7,2922.0,0.005]
[1731077181778,0.0377,2922.5,2922.0,0.005]
[1731077184542,0.0377,2923.7,2922.3,4.33062262]
[1731077184705,0.0377,2923.7,2922.4,3.61840332]
[1731077185043,0.0377,2923.7,2922.3,4.33062262]
[1731077185343,0.0377,2923.7,2922.5,0.55]
[1731077185503,0.0377,2923.7,2922.6,0.8294]
[1731077185700,0.0377,2923.7,2922.6,0.43794]
[1731077185913,0.0377,2923.7,2922.7,0.06841285]
[1731077186615,0.0377,2923.7,2922.0,3.555]
[1731077186813,0.0377,2923.7,2922.0,0.005]
[1731077187352,0.0377,2923.7,2922.1,0.55]
[1731077187644,0.0377,2923.7,2922.4,0.55]
[1731077187831,0.0377,2923.7,2922.5,0.48806226]
[1731077188705,0.0377,2923.7,2922.0,0.005]
[1731077188706,0.0377,2923.7,2922.0,3.005]
[1731077189105,0.0377,2923.7,2922.0,0.005]
[1731077190049,0.01,2923.4,2922.0,0.005]
[1731077190235,0.0377,2923.1,2922.0,0.005]
[1731077191110,0.0377,2923.1,2922.0,0.07342387]
[1731077191306,0.0377,2923.1,2922.1,0.44040465]
[1731077191534,0.0377,2923.1,2922.2,0.06841768]
[1731077191756,0.0377,2923.1,2922.1,0.44040465]
[1731077192342,0.0377,2923.1,2922.2,0.06842011]
[1731077192577,0.0377,2923.1,2922.1,0.44040465]
[1731077193578,0.05133748,2923.8,2922.1,0.44040465]
[1731077194144,0.05133748,2923.8,2922.1,35.44040465]
[1731077194479,0.05133748,2923.8,2922.4,0.55]
[1731077194632,0.05133748,2923.8,2922.8,0.55]
[1731077194837,0.05133748,2923.8,2923.1,4.33062262]
[1731077195192,0.736832,2926.0,2923.6,1.3603]
[1731077195519,0.35711198,2926.4,2924.4,4.33062262]
[1731077195663,1.37139546,2926.6,2923.6,3.8103]
[1731077195664,2.03821486,2926.6,2924.8,4.33062262]
[1731077195833,1.37139546,2926.6,2924.8,4.33062262]
[1731077196034,1.37139546,2926.6,2924.8,39.33062262]
[1731077196229,1.37139546,2926.6,2924.8,4.33062262]
[1731077196434,1.37139546,2926.6,2924.6,0.8124]
[1731077196678,1.37139546,2926.6,2924.5,0.43306226]
[1731077196850,0.01,2926.5,2924.2,0.55]
[1731077197173,0.01,2926.5,2924.1,0.55]
[1731077197344,0.01,2925.9,2923.6,4.33062262]
[1731077197532,0.01,2925.9,2922.7,0.01]
[1731077197533,3.01,2925.6,2923.2,4.33062262]
[1731077197734,0.01,2925.6,2923.2,4.33062262]
[1731077198039,0.56,2925.5,2923.3,0.43306226]
[1731077198237,0.55,2925.5,2923.3,0.43306226]
[1731077198669,0.01,2925.2,2923.4,0.06839196]
[1731077198872,0.55,2925.3,2922.7,4.33062262]
[1731077199046,0.55,2925.3,2922.8,0.06839687]
[1731077199297,0.322,2925.6,2922.8,0.06839687]
[1731077199298,0.302,2925.6,2923.5,4.33062262]
[1731077199639,0.01,2925.8,2923.5,4.33062262]
[1731077199872,3.01,2925.8,2923.5,39.33062262]
[1731077200187,3.01,2925.8,2923.2,3.0]
[1731077200350,0.01,2925.7,2923.2,3.0]
[1731077200552,3.0,2925.5,2923.2,3.0]
[1731077200754,3.57,2925.3,2922.7,4.33062262]
[1731077201091,3.57,2925.3,2921.8,4.33062262]
[1731077201092,6.97934,2924.6,2921.8,4.33062262]
[1731077201393,3.56,2924.6,2921.8,39.33062262]
[1731077201555,6.97928,2924.6,2921.8,39.33062262]
[1731077201744,3.56,2924.6,2921.8,39.72180843]
[1731077201939,0.55,2924.4,2921.8,39.72180843]
[1731077202353,0.55,2924.4,2922.2,4.33062262]
[1731077202790,3.55,2924.4,2921.8,4.72180843]
[1731077202942,3.55,2924.4,2921.8,4.33062262]
[1731077203142,0.55,2924.4,2921.8,4.33062262]
[1731077204057,0.55,2924.4,2922.2,4.33062262]
[1731077204242,0.55,2924.5,2922.3,0.50148089]
[1731077204658,3.0,2924.6,2922.3,0.43306226]
[1731077204856,0.56,2924.5,2922.3,0.43306226]
[1731077205342,0.01,2924.4,2922.3,0.43306226]
[1731077205684,0.05132188,2924.4,2922.6,4.33062262]
[1731077205895,0.05132188,2924.4,2923.0,4.33062262]
[1731077206046,0.05132188,2924.4,2923.1,0.06840012]
[1731077206569,0.05132188,2924.4,2922.7,0.50885226]
[1731077206831,0.05132188,2924.4,2922.2,7.33062262]
[1731077206984,0.55,2924.3,2922.2,4.33062262]
[1731077208107,3.41975,2924.2,2922.0,0.005]
[1731077208308,3.55,2923.8,2922.0,0.005]
[1731077208446,3.41978,2924.2,2922.0,0.005]
[1731077208447,0.01,2924.8,2922.6,4.33062262]
[1731077208794,0.01,2924.7,2922.6,4.33062262]
[1731077208986,0.67111156,2924.6,2922.6,4.33062262]
[1731077209582,0.67111156,2924.6,2922.2,4.33062262]
[1731077209764,0.55,2924.3,2922.2,4.33062262]
[1731077210507,0.55,2924.3,2922.0,0.005]
[1731077210709,3.56,2924.3,2922.0,0.005]
[1731077210929,0.55,2924.1,2922.0,0.43856226]
[1731077211927,0.01,2924.0,2922.0,0.43856226]
[1731077212411,3.55,2924.1,2922.0,0.43856226]
[1731077212716,3.55,2924.1,2922.0,0.005]
[1731077212717,0.01,2924.0,2922.0,0.005]
[1731077213020,4.13286319,2924.2,2922.2,4.33062262]
[1731077213021,0.70308319,2924.2,2922.2,4.33062262]
[1731077213188,0.55,2924.3,2922.3,0.06841674]
[1731077213782,0.55,2924.3,2922.2,4.33062262]
[1731077214344,0.67294769,2924.1,2922.2,4.33062262]
[1731077214671,0.67294769,2924.1,2922.3,0.06842258]
[1731077214865,0.55,2924.3,2922.3,0.06842258]
[1731077215114,0.55,2924.3,2922.4,0.43990452]
[1731077215276,0.69483439,2924.2,2922.4,0.43990452]
[1731077215484,0.55,2924.1,2922.4,0.43990452]
[1731077215702,0.55,2924.1,2922.2,4.33062262]
[1731077215995,0.69483439,2924.2,2922.2,4.33062262]
[1731077215996,0.69483439,2924.2,2922.3,0.06842702]
[1731077216374,0.05132188,2924.4,2922.6,4.33062262]
[1731077216711,0.05132188,2924.4,2922.7,0.06841344]
[1731077216901,0.73206671,2924.4,2922.7,0.06841344]
[1731077217105,0.73206671,2924.4,2922.7,0.50831705]
[1731077217584,0.05132188,2924.4,2923.0,4.33062262]
[1731077217925,0.05132188,2924.4,2923.4,4.33062262]
[1731077218130,0.05132188,2924.4,2923.5,0.06839182]
[1731077218277,0.05132188,2924.4,2923.6,0.43990144]
[1731077218822,0.05132188,2924.4,2923.7,0.06838728]
[1731077219124,0.05132188,2924.4,2924.2,4.33062262]
[1731077219872,0.05132188,2924.4,2923.8,4.33062262]
[1731077220281,0.05132188,2924.4,2923.6,0.43990144]
[1731077220488,0.05132188,2924.4,2923.7,0.34399014]
[1731077220670,0.05132188,2924.4,2923.8,0.06838717]
[1731077220874,0.05132188,2924.4,2923.8,4.39900979]
[1731077221314,0.05132188,2924.4,2923.8,4.33062262]
[1731077221526,0.05132188,2924.4,2923.9,0.06837991]
[1731077221870,0.05132188,2924.4,2923.8,4.33062262]
[1731077221973,0.05132188,2924.4,2923.9,0.43306226]
[1731077222181,0.05132188,2924.4,2924.0,0.06837366]
[1731077222409,0.05132188,2924.4,2923.9,0.43306226]
[1731077222875,0.05132188,2924.4,2923.1,0.692509]
[1731077222876,0.05132188,2924.4,2923.0,5.14762262]
[1731077223075,0.05132188,2924.4,2923.0,4.33062262]
[1731077223974,2.94244417,2925.0,2922.6,4.33062262]
[1731077224222,1.18711942,2924.9,2922.7,0.43306226]
[1731077224379,3.41905,2924.8,2922.7,0.43306226]
[1731077224720,0.56,2924.7,2922.7,0.43306226]
[1731077224892,0.55,2924.5,2922.2,4.33062262]
[1731077225287,0.55,2924.6,2922.2,4.33062262]